bitfinex/quotes_ETHUSD_20250422
["timestamp","ask_amount","ask_price","bid_price","bid_amount"]
[1745287902366,6.63350851,1585.2,1585.1,1e-08]
[1745287904915,7.18350851,1585.2,1585.1,1e-08]
[1745287906592,8.01260851,1585.2,1585.1,1e-08]
[1745287906921,10.07547899,1585.2,1585.1,1e-08]
[1745287915484,22.77247899,1585.2,1585.1,1e-08]
[1745287916087,26.39214766,1585.2,1585.1,1e-08]
[1745287918686,26.71949062,1585.2,1585.1,1e-08]
[1745287919291,33.49149062,1585.2,1585.1,1e-08]
[1745287919447,6.31113916,1584.5,1584.4,1e-08]
[1745287919801,6.31113916,1584.5,1584.4,0.80420001]
[1745287919802,6.6293875,1584.5,1584.4,0.80420001]
[1745287919946,6.6293875,1584.5,1584.4,1.00126847]
[1745287920152,6.6293875,1584.5,1584.4,4.00126847]
[1745287920351,6.6293875,1584.5,1584.4,5.36476218]
[1745287920581,6.31046417,1584.7,1584.5,0.8042]
[1745287920767,6.31046417,1584.7,1584.6,3.8042]
[1745287921063,6.31046417,1584.7,1584.6,4.00126846]
[1745287922261,6.31046417,1584.7,1584.6,1.00126846]
[1745287922674,6.31018021,1584.8,1584.7,0.8042]
[1745287922877,6.31018021,1584.8,1584.7,3.46209371]
[1745287923086,12.38870327,1585.2,1584.8,0.8042]
[1745287923286,12.38870327,1585.2,1585.1,3.61966867]
[1745287923287,6.30852953,1585.2,1585.1,3.61966867]
[1745287923504,6.30852953,1585.2,1585.1,7.62093713]
[1745287924758,6.30813121,1585.3,1585.1,7.62093713]
[1745287924960,6.30728523,1585.5,1585.3,0.8042]
[1745287925199,6.30728523,1585.5,1585.4,4.00126846]
[1745287925402,6.30728523,1585.5,1585.4,0.19706846]
[1745287925609,6.30795433,1585.3,1585.2,0.8042]
[1745287925763,6.30795433,1585.3,1584.9,6.49632088]
[1745287925764,6.30914826,1585.0,1584.9,9.63366867]
[1745287925959,6.30914826,1585.0,1584.9,12.63366867]
[1745287926219,6.30914826,1585.0,1584.9,12.83066239]
[1745287926504,6.30892802,1585.1,1585.0,3.8042]
[1745287927057,6.30892802,1585.1,1585.0,4.00119372]
[1745287927371,6.30892802,1585.1,1585.0,3.19699372]
[1745287927701,6.30892802,1585.1,1585.0,0.19699372]
[1745287927901,7.64588487,1585.1,1585.0,0.19699372]
[1745287928099,6.30954634,1584.9,1584.8,3.8042]
[1745287928400,6.30954634,1584.9,1584.8,4.00121251]
[1745287928596,6.60698665,1584.9,1584.8,4.00121251]
[1745287933704,0.29744031,1584.9,1584.8,4.00121251]
[1745287933866,0.29744031,1584.9,1584.8,4.81364099]
[1745287934677,0.29744031,1584.9,1584.8,11.12358546]
[1745287934862,6.8351,1585.6,1584.9,6.30916695]
[1745287934863,6.30816295,1585.3,1584.9,6.30916695]
[1745287935066,6.30816295,1585.3,1585.2,0.7725]
[1745287935467,6.30816295,1585.3,1585.2,0.96951251]
[1745287936994,6.30816295,1585.3,1585.2,0.19701251]
[1745287937476,6.30835225,1585.2,1585.1,3.7725]
[1745287937887,6.30835225,1585.2,1585.1,3.96947354]
[1745287938315,6.30835225,1585.2,1585.1,3.81987354]
[1745287939002,6.30835225,1585.2,1585.1,4.80316089]
[1745287941854,6.8351,1585.6,1585.2,7.08046236]
[1745287941855,6.3069676,1585.6,1585.2,7.08046236]
[1745287942015,6.30517023,1586.0,1585.6,0.7725]
[1745287942214,6.30636312,1585.7,1585.6,0.7725]
[1745287942623,6.57997369,1585.7,1585.6,0.7725]
[1745287943144,6.57997369,1585.7,1585.6,0.96941675]
[1745287943640,6.57997369,1585.7,1585.6,0.7725]
[1745287946507,0.27361057,1585.7,1585.6,0.7725]
[1745287946707,0.27361057,1585.7,1585.6,1.3094265]
[1745287947375,0.27361057,1585.7,1585.6,1.50633225]
[1745287947574,6.57997369,1585.7,1585.6,1.50633225]
[1745287947775,0.27361057,1585.7,1585.6,4.87299429]
[1745287947961,0.27361057,1585.7,1585.6,4.50633225]
[1745287948167,6.3061269,1585.8,1585.6,4.50633225]
[1745287948364,6.3061269,1585.8,1585.7,0.45063322]
[1745287948567,6.30529897,1586.0,1585.7,5.34880553]
[1745287948888,12.61075207,1586.0,1585.7,5.34880553]
[1745287949072,6.30529897,1586.0,1585.8,0.19687904]
[1745287949275,0.8085,1586.3,1585.9,3.61420703]
[1745287949485,6.30451449,1586.2,1586.0,3.7751]
[1745287949798,6.30556781,1585.9,1585.8,3.61420703]
[1745287951592,6.30636312,1585.7,1585.6,4.38930703]
[1745287951803,6.30622474,1585.8,1585.6,7.38930703]
[1745287952089,6.30715862,1585.5,1585.4,1.13494095]
[1745287952289,6.30715862,1585.5,1585.4,0.7751]
[1745287952590,6.30715862,1585.5,1585.4,3.7751]
[1745287952793,6.30715862,1585.5,1585.4,3.97202848]
[1745287953395,6.30715862,1585.5,1585.4,0.97202848]
[1745287956296,6.30676084,1585.6,1585.4,4.43065203]
[1745287956494,12.61321137,1585.7,1585.5,3.67727537]
[1745287956723,12.61321137,1585.7,1585.5,3.61420703]
[1745287957220,6.30676084,1585.6,1585.5,6.61420703]
[1745287957606,6.30676084,1585.6,1585.5,6.81112653]
[1745287957926,6.30676084,1585.6,1585.5,3.1969195]
[1745287958138,6.30676084,1585.6,1585.5,3.0]
[1745287959824,6.30676084,1585.6,1585.5,3.19692094]
[1745287961001,6.30654233,1585.7,1585.5,3.19692094]
[1745287961206,6.30676084,1585.6,1585.5,3.19692094]
[1745287961701,6.30619499,1585.8,1585.7,0.7543]
[1745287962110,6.30636312,1585.7,1585.6,4.36850703]
[1745287962315,6.58993085,1585.7,1585.6,4.56542797]
[1745287964926,0.28356773,1585.7,1585.6,4.56542797]
[1745287966034,0.28356773,1585.7,1585.6,7.56542797]
[1745287966235,0.28356773,1585.7,1585.6,9.08280428]
[1745287966559,6.58860377,1585.7,1585.6,9.08280428]
[1745287967067,0.28224065,1585.7,1585.6,9.08280428]
[1745287967747,6.58860377,1585.7,1585.6,7.56542797]
[1745287967954,6.58860377,1585.7,1585.6,0.19692094]
[1745287973713,6.58860377,1585.7,1585.6,3.81112797]
[1745287974009,0.28224065,1585.7,1585.6,4.56682797]
[1745287974806,6.58860377,1585.7,1585.6,4.56682797]
[1745287975512,6.58860377,1585.7,1585.6,8.07778623]
[1745287977434,6.58860377,1585.7,1585.6,8.07778623]
[1745287977713,6.58860377,1585.7,1585.6,5.07778623]
[1745287977882,6.58860377,1585.7,1585.6,4.56682797]
[1745287978424,6.30676084,1585.6,1585.5,0.47968962]
[1745287978634,6.30835225,1585.2,1585.1,0.46400231]
[1745287978934,6.30835225,1585.2,1585.0,0.7557]
[1745287978935,6.30875023,1585.1,1585.0,4.36990703]
[1745287979233,6.30914826,1585.0,1584.9,4.36990703]
[1745287979632,6.30914826,1585.0,1584.9,6.61420703]
[1745287979791,6.59045983,1585.0,1584.9,3.61420703]
[1745287980302,6.59045983,1585.0,1584.9,6.61420703]
[1745287980759,6.59045983,1585.0,1584.9,7.08088061]
[1745287981021,6.59045983,1585.0,1584.9,4.08088061]
[1745287981392,6.59045983,1585.0,1584.9,7.08088061]
[1745287984798,6.59045983,1585.0,1584.9,6.61420703]
[1745287985833,6.59045983,1585.0,1584.7,0.7557]
[1745287985834,6.30994447,1584.8,1584.7,3.61420703]
[1745287986125,6.30994447,1584.8,1584.7,6.61420703]
[1745287986519,6.59125604,1584.8,1584.7,6.61420703]
[1745287986712,6.59125604,1584.8,1584.7,3.61420703]
[1745287987232,0.28131157,1584.8,1584.7,5.09442753]
[1745287987436,6.30938617,1585.0,1584.7,5.03132773]
[1745287987725,6.30938617,1585.0,1584.9,3.61420703]
[1745287989042,6.59069774,1585.0,1584.9,3.61420703]
[1745287992449,6.59069774,1585.0,1584.9,6.61420703]
[1745287992610,6.59069774,1585.0,1584.9,3.0]
[1745287994713,6.31074088,1584.6,1584.5,13.36380703]
[1745287994918,6.31074088,1584.6,1584.5,9.51120703]
[1745287995116,6.58222611,1584.6,1584.5,12.51120703]
[1745287995443,6.58222611,1584.6,1584.5,6.61420703]
[1745287996667,6.58222611,1584.6,1584.5,3.61420703]
[1745287997033,6.3115311,1584.5,1584.3,4.22868991]
[1745287997233,6.3115311,1584.5,1584.4,3.61420703]
[1745287997667,6.58301633,1584.5,1584.4,3.61420703]
[1745287998269,6.31193587,1584.3,1584.2,6.7506]
[1745287998451,6.31193587,1584.3,1584.2,10.36480703]
[1745287998961,6.5834211,1584.3,1584.2,13.36480703]
[1745288000859,0.27148523,1584.3,1584.2,13.84447936]
[1745288001025,12.62354348,1584.4,1584.2,14.56345592]
[1745288001228,6.5763776,1584.3,1584.2,14.56345592]
[1745288001463,0.26444173,1584.3,1584.2,14.56345592]
[1745288001828,6.31138538,1584.5,1584.3,3.0]
[1745288002042,6.31138538,1584.5,1584.4,3.61420703]
[1745288002239,6.31153749,1584.4,1584.3,3.0]
[1745288002443,6.31153749,1584.4,1584.3,6.61420703]
[1745288003573,6.31070572,1584.7,1584.4,0.7526]
[1745288003761,6.31070572,1584.7,1584.6,6.61420703]
[1745288005270,6.31013122,1584.8,1584.7,3.0]
[1745288005437,6.31034265,1584.7,1584.6,3.61420703]
[1745288007078,7.11734265,1584.7,1584.6,3.61420703]
[1745288007274,6.31149176,1584.5,1584.4,3.61420703]
[1745288007978,6.31153749,1584.4,1584.3,3.61420703]
[1745288008353,6.31153749,1584.4,1584.3,6.61420703]
[1745288008768,6.31193587,1584.3,1584.2,6.47767233]
[1745288008954,6.31193587,1584.3,1584.2,10.09187936]
[1745288009156,6.31153749,1584.4,1584.3,3.0]
[1745288010367,6.31096169,1584.6,1584.3,4.30918794]
[1745288010683,6.31096169,1584.6,1584.5,3.61420703]
[1745288011481,6.31057483,1584.7,1584.5,3.67731363]
[1745288011693,12.62121104,1584.7,1584.5,3.61420703]
[1745288011899,6.31074088,1584.6,1584.5,7.35174773]
[1745288012395,6.31074088,1584.6,1584.5,6.61420703]
[1745288012597,6.31074088,1584.6,1584.5,3.61420703]
[1745288012784,6.31145324,1584.5,1584.3,3.7612]
[1745288012986,6.31145324,1584.5,1584.4,3.61420703]
[1745288013159,12.62197653,1584.6,1584.4,3.61420703]
[1745288013490,6.31049103,1584.7,1584.5,0.7612]
[1745288013696,6.31049103,1584.7,1584.6,6.61420703]
[1745288015194,6.57493276,1584.7,1584.6,6.61420703]
[1745288015767,7.38193276,1584.7,1584.6,3.61420703]
[1745288015972,6.31074088,1584.6,1584.5,3.0]
[1745288016303,6.57823978,1584.6,1584.5,3.0]
[1745288017503,6.31113916,1584.5,1584.4,3.61420703]
[1745288017679,6.3123343,1584.2,1584.1,0.1]
[1745288018189,6.31331403,1584.0,1583.9,3.61420703]
[1745288018602,6.31331403,1584.0,1583.9,6.61420703]
[1745288018792,6.58081293,1584.0,1583.9,3.61420703]
[1745288020322,0.2674989,1584.0,1583.9,3.97562773]
[1745288020614,6.31256851,1584.2,1583.9,13.80142773]
[1745288020805,6.31256851,1584.2,1584.1,6.61420703]
[1745288022627,6.31256851,1584.2,1583.3,0.8328]
[1745288022628,6.31473078,1583.6,1583.3,0.8328]
[1745288022811,0.7718,1583.9,1583.4,3.61420703]
[1745288022996,0.7718,1583.9,1583.3,0.8328]
[1745288022997,6.31414153,1583.8,1583.7,3.0]
[1745288023181,6.3143272,1583.7,1583.6,0.8328]
[1745288023381,6.31472594,1583.6,1583.5,6.61420703]
[1745288023877,6.31472594,1583.6,1583.5,3.61420703]
[1745288024516,6.31450124,1583.7,1583.5,3.61420703]
[1745288024694,6.31412101,1583.8,1583.5,4.35890773]
[1745288024891,6.3135697,1583.9,1583.7,6.61420703]
[1745288025106,6.08,1584.2,1583.7,4.44700703]
[1745288025107,6.31331622,1584.0,1583.7,4.44700703]
[1745288025303,6.31293148,1584.1,1583.8,3.61420703]
[1745288025510,6.31293148,1584.1,1584.0,6.61420703]
[1745288027327,6.31373193,1583.9,1583.8,6.61420703]
[1745288029936,6.31330678,1584.0,1583.9,3.0]
[1745288031902,6.5683056,1584.0,1583.9,3.0]
[1745288035837,6.31428552,1583.8,1583.6,3.61420703]
[1745288036037,6.31425459,1583.8,1583.6,3.61420703]
[1745288036402,0.25499882,1583.7,1583.6,6.61420703]
[1745288036600,0.25499882,1583.7,1583.6,3.47989099]
[1745288036807,0.25499882,1583.7,1583.6,7.09409802]
[1745288037240,0.25499882,1583.7,1583.6,15.01820383]
[1745288037739,6.31290141,1584.1,1583.7,9.3141793]
[1745288037935,6.31313733,1584.0,1583.9,6.61420703]
[1745288038112,12.62590631,1584.1,1583.9,6.61420703]
[1745288038316,6.31290141,1584.1,1583.9,3.0]
[1745288038522,7.09133131,1584.0,1583.9,3.0]
[1745288038722,6.31358939,1583.9,1583.6,3.61420703]
[1745288039040,6.31491925,1583.6,1583.5,3.61420703]
[1745288039244,6.31491925,1583.6,1583.5,6.61420703]
[1745288039746,6.31512472,1583.5,1583.4,5.995]
[1745288039941,6.31512472,1583.5,1583.4,8.995]
[1745288040325,6.31491925,1583.6,1583.4,10.2559207]
[1745288040625,6.31491925,1583.6,1583.5,3.61420703]
[1745288041469,6.31451469,1583.7,1583.5,7.91273838]
[1745288041667,6.31416932,1583.8,1583.5,7.91273838]
[1745288041867,6.31416932,1583.8,1583.6,3.0]
[1745288042033,6.3143272,1583.7,1583.6,3.0]
[1745288042858,6.31416932,1583.8,1583.5,7.91273838]
[1745288043050,6.31416932,1583.8,1583.6,3.0]
[1745288043360,6.3143272,1583.7,1583.6,3.0]
[1745288044478,7.0925272,1583.7,1583.6,3.0]
[1745288044759,6.31512472,1583.5,1583.4,9.60920703]
[1745288044965,6.31512472,1583.5,1583.4,12.60920703]
[1745288045151,6.31512472,1583.5,1583.4,9.60920703]
[1745288045323,6.31512472,1583.5,1583.4,12.60920703]
[1745288046663,6.31491478,1583.6,1583.5,3.0]
[1745288048978,12.3945167,1583.7,1583.5,3.7756]
[1745288049155,12.3945167,1583.7,1583.6,3.61420703]
[1745288049156,6.08,1583.7,1583.6,3.61420703]
[1745288050732,12.3943272,1583.7,1583.6,3.61420703]
[1745288051271,6.08,1583.7,1583.6,3.61420703]
[1745288054569,6.08,1583.7,1583.6,6.67734773]
[1745288054773,12.39296682,1584.1,1583.8,0.7756]
[1745288054937,6.31313131,1584.0,1583.9,6.61420703]
[1745288056075,12.39296682,1584.1,1583.9,6.61420703]
[1745288056385,12.39296682,1584.1,1584.0,3.0]
[1745288056878,6.08,1584.1,1583.9,3.0]
[1745288057081,6.31219176,1584.3,1584.1,3.0]
[1745288057846,6.3124642,1584.2,1584.0,6.61420703]
[1745288058169,6.31219176,1584.3,1584.1,3.0]
[1745288058373,6.3123343,1584.2,1584.1,3.0]
[1745288058543,6.3123343,1584.2,1584.0,3.61420703]
[1745288058741,6.3123343,1584.2,1584.0,4.07661517]
[1745288059995,6.31219176,1584.3,1584.0,4.07661517]
[1745288060283,12.62451503,1584.3,1584.0,5.41561554]
[1745288060793,6.31219176,1584.3,1584.0,5.41561554]
[1745288061459,6.31247784,1584.2,1584.0,5.41561554]
[1745288061670,6.31273278,1584.1,1584.0,3.61420703]
[1745288061984,7.39062901,1584.1,1583.9,6.61420703]
[1745288062188,6.31313131,1584.0,1583.9,6.61420703]
[1745288062784,0.25619623,1584.0,1583.9,6.61420703]
[1745288062981,6.56932754,1584.0,1583.9,6.61420703]
[1745288063352,6.56932754,1584.0,1583.9,7.09851747]
[1745288063563,6.31352989,1583.9,1583.8,3.61420703]
[1745288063957,6.31352989,1583.9,1583.8,6.61420703]
[1745288064159,7.38742612,1583.9,1583.8,6.61420703]
[1745288064968,7.38742612,1583.9,1583.7,5.988]
[1745288064969,6.31392852,1583.8,1583.7,5.988]
[1745288065371,6.31392852,1583.8,1583.7,8.988]
[1745288065569,6.57012475,1583.8,1583.7,8.988]
[1745288065991,6.57012475,1583.8,1583.7,5.988]
[1745288066376,6.57012475,1583.8,1583.7,8.988]
[1745288067291,8.70863772,1583.8,1583.7,8.988]
[1745288067664,8.70863772,1583.8,1583.7,3.0]
[1745288070089,6.31512472,1583.5,1583.4,3.61420703]
[1745288070294,6.31512472,1583.5,1583.4,6.61420703]
[1745288070494,6.57305045,1583.5,1583.4,6.61420703]
[1745288075217,0.25792573,1583.5,1583.4,6.61420703]
[1745288075399,0.25792573,1583.5,1583.4,7.99997557]
[1745288075811,0.25792573,1583.5,1583.4,18.78365197]
[1745288076111,6.31395616,1583.8,1583.5,9.3150397]
[1745288076301,6.31395616,1583.8,1583.7,3.61420703]
[1745288077006,6.56786284,1583.8,1583.7,6.61420703]
[1745288082616,6.56786284,1583.8,1583.7,3.0]
[1745288090347,0.25393432,1583.8,1583.7,3.0]
[1745288090507,0.25393432,1583.8,1583.7,4.4432207]
[1745288090903,12.39372095,1583.9,1583.8,3.0]
[1745288091107,12.39372095,1583.9,1583.8,3.61420703]
[1745288091959,12.64978418,1583.9,1583.8,3.61420703]
[1745288092546,6.33606323,1583.9,1583.8,3.61420703]
[1745288092754,6.33606323,1583.9,1583.8,4.7332764]
[1745288093353,6.33606323,1583.9,1583.8,7.7332764]
[1745288093929,12.64959312,1583.9,1583.8,7.7332764]
[1745288094129,6.33606323,1583.9,1583.8,6.61420703]
[1745288094954,0.25606323,1583.9,1583.8,3.61420703]
[1745288095722,0.25606323,1583.9,1583.8,9.92813555]
[1745288096123,0.25606323,1583.9,1583.8,3.61420703]
[1745288096324,0.25606323,1583.9,1583.8,9.92813555]
[1745288096520,0.25606323,1583.9,1583.7,1.26223562]
[1745288096726,0.25606323,1583.9,1583.8,3.61420703]
[1745288096952,6.56972646,1583.9,1583.8,3.61420703]
[1745288097329,6.31392852,1583.8,1583.7,0.48043562]
[1745288097532,6.31392852,1583.8,1583.6,7.44580703]
[1745288097932,0.25606323,1583.7,1583.6,7.44580703]
[1745288099058,6.57039043,1583.7,1583.6,6.61420703]
[1745288102265,0.25606323,1583.7,1583.6,6.61420703]
[1745288102626,6.57039043,1583.7,1583.6,6.61420703]
[1745288104974,6.57039043,1583.7,1583.5,8.983]
[1745288104975,6.31472594,1583.6,1583.5,8.983]
[1745288105166,6.31472594,1583.6,1583.5,3.0]
[1745288105476,7.36072042,1583.6,1583.5,3.0]
[1745288107773,6.31592244,1583.3,1583.2,9.9345773]
[1745288108146,6.31592244,1583.3,1583.2,12.9345773]
[1745288108478,6.57291692,1583.3,1583.2,12.59020703]
[1745288108696,6.57291692,1583.3,1583.2,13.06176999]
[1745288108861,0.25699448,1583.3,1583.2,13.06176999]
[1745288109194,6.31592244,1583.3,1583.2,13.06176999]
[1745288109386,6.57291692,1583.3,1583.2,13.06176999]
[1745288109589,0.25699448,1583.3,1583.2,13.06176999]
[1745288109809,0.25699448,1583.3,1583.2,13.40622929]
[1745288109959,6.31571412,1583.4,1583.2,14.72240629]
[1745288110289,0.25699448,1583.3,1583.2,13.06176999]
[1745288110693,6.31571412,1583.4,1583.2,13.06176999]
[1745288110891,0.25699448,1583.3,1583.2,13.06176999]
[1745288111096,0.25699448,1583.3,1583.2,3.47156296]
[1745288111301,6.31592244,1583.3,1583.2,3.47156296]
[1745288111600,6.57291692,1583.3,1583.2,7.08576999]
[1745288112066,6.31632137,1583.2,1583.1,0.1]
[1745288112484,6.57331585,1583.2,1583.1,0.1]
[1745288113159,13.45451585,1583.2,1583.1,1e-08]
[1745288117826,6.33699448,1583.2,1583.1,1e-08]
[1745288117994,6.33699448,1583.2,1583.1,0.40767071]
[1745288118323,0.25699448,1583.2,1583.1,1.19337071]
[1745288118697,13.19610366,1583.6,1583.1,1.19337071]
[1745288118900,13.19610366,1583.6,1583.2,6.61420703]
[1745288119094,13.19610366,1583.6,1583.4,3.61420703]
[1745288119095,6.8812,1583.6,1583.4,3.61420703]
[1745288119308,6.08,1583.6,1583.4,3.61420703]
[1745288119501,6.08,1583.6,1583.5,3.0]
[1745288120990,12.39472594,1583.6,1583.3,3.61420703]
[1745288121325,12.39472594,1583.6,1583.4,3.0]
[1745288121928,6.55966672,1583.5,1583.3,3.61420703]
[1745288122602,6.55966672,1583.5,1583.3,3.0]
[1745288123007,6.55966672,1583.5,1583.1,7.80757774]
[1745288124026,0.24434873,1583.5,1583.1,7.80757774]
[1745288124696,6.55948978,1583.5,1583.1,7.80757774]
[1745288124897,6.55948978,1583.5,1583.2,0.78075777]
[1745288127034,6.55948978,1583.5,1583.1,7.80757774]
[1745288127195,12.87495928,1583.5,1583.1,7.80757774]
[1745288127396,6.31606856,1583.3,1583.1,3.00000001]
[1745288127631,12.63226315,1583.3,1583.1,3.00000001]
[1745288127925,7.38802769,1583.2,1583.1,1e-08]
[1745288131940,7.54304782,1583.2,1583.1,1e-08]
[1745288132147,9.53695946,1583.2,1583.1,1e-08]
[1745288136823,15.61695946,1583.2,1583.1,1e-08]
[1745288137451,14.79625946,1583.2,1583.1,1e-08]
[1745288137619,12.80234782,1583.2,1583.1,1e-08]
[1745288139339,6.48602645,1583.2,1583.1,1e-08]
[1745288139634,6.48602645,1583.2,1583.1,3.75060001]
[1745288139834,6.48602645,1583.2,1583.1,9.72260001]
[1745288141235,6.48602645,1583.2,1583.1,16.03932036]
[1745288141437,6.08,1583.2,1583.1,18.68343338]
[1745288141945,6.48243187,1583.2,1583.1,18.68343338]
[1745288142143,0.40243187,1583.2,1583.1,18.68343338]
[1745288142320,2.92373324,1583.7,1583.3,3.7506]
[1745288142521,0.40243187,1583.6,1583.5,3.0]
[1745288142934,9.23808358,1583.7,1583.5,3.0]
[1745288143163,0.40243187,1583.6,1583.5,3.0]
[1745288143318,9.23808358,1583.7,1583.5,3.0]
[1745288143521,0.40243187,1583.6,1583.5,3.0]
[1745288143722,9.23808358,1583.7,1583.5,3.0]
[1745288144025,0.40243187,1583.6,1583.5,3.0]
[1745288144755,9.23808358,1583.7,1583.5,3.0]
[1745288144948,0.40243187,1583.6,1583.5,3.0]
[1745288145562,0.40243187,1583.6,1583.5,4.4120207]
[1745288145760,2.92373324,1583.7,1583.5,16.76228735]
[1745288145928,2.92373324,1583.7,1583.6,3.61420703]
[1745288147425,6.31472594,1583.6,1583.4,0.806]
[1745288147625,12.62975289,1583.6,1583.3,9.58520703]
[1745288147843,6.31472594,1583.6,1583.3,9.58520703]
[1745288148648,9.23845918,1583.6,1583.3,9.58520703]
[1745288148862,6.31516819,1583.5,1583.3,9.58520703]
[1745288149932,6.31552355,1583.4,1583.3,5.971]
[1745288150125,6.31552355,1583.4,1583.3,8.971]
[1745288150738,6.31552355,1583.4,1583.3,5.971]
[1745288151263,6.31552355,1583.4,1583.3,8.971]
[1745288151858,6.31552355,1583.4,1583.3,3.0]
[1745288152051,6.72115067,1583.4,1583.3,3.0]
[1745288152429,0.40562712,1583.4,1583.3,3.0]
[1745288155243,6.72115067,1583.4,1583.3,3.0]
[1745288156145,8.02478256,1583.4,1583.3,3.0]
[1745288157269,6.31632137,1583.2,1583.1,1e-08]
[1745288157466,6.31593972,1583.3,1583.1,3.00000001]
[1745288157983,6.72194849,1583.2,1583.1,3.00000001]
[1745288158434,6.72194849,1583.2,1583.1,1e-08]
[1745288158978,7.48574849,1583.2,1583.1,1e-08]
[1745288159165,9.49752858,1583.2,1583.1,1e-08]
[1745288159838,12.42126182,1583.2,1583.1,1e-08]
[1745288160280,6.10494045,1583.2,1583.1,1e-08]
[1745288160448,3.32936036,1583.2,1583.1,1e-08]
[1745288162641,3.32936036,1583.2,1583.1,6.61420704]
[1745288163044,3.32936036,1583.2,1583.1,19.67422739]
[1745288163566,0.40562712,1583.2,1583.1,19.67422739]
[1745288163735,2.92373324,1583.6,1583.3,0.7793]
[1745288163936,2.92373324,1583.6,1583.5,3.0]
[1745288167174,2.92373324,1583.6,1583.1,12.28052657]
[1745288167175,6.31632137,1583.2,1583.1,1e-08]
[1745288167360,9.99785461,1583.2,1583.1,1e-08]
[1745288167750,10.39895481,1583.2,1583.1,1e-08]
[1745288167975,12.07044254,1583.2,1583.1,1e-08]
[1745288181091,18.03544254,1583.2,1583.1,1e-08]
[1745288181389,18.58544254,1583.2,1583.1,1e-08]
[1745288183893,9.24085262,1583.0,1582.9,0.39304351]
[1745288184209,9.63942232,1583.0,1582.9,0.39304351]
[1745288184408,11.86674667,1583.0,1582.9,0.39304351]
[1745288184805,12.69364667,1583.0,1582.9,0.39304351]
[1745288185004,6.31947386,1582.5,1582.3,0.7882]
[1745288185186,9.87519528,1582.4,1582.3,0.7882]
[1745288185386,9.24324789,1582.4,1582.3,0.7882]
[1745288185706,9.24324789,1582.4,1582.2,0.04349339]
[1745288185877,2.92373323,1582.4,1582.2,3.04349339]
[1745288186082,2.92373323,1582.4,1582.2,6.65770042]
[1745288186323,0.3985697,1582.3,1582.2,6.65770042]
[1745288187210,0.3985697,1582.3,1582.2,0.04349339]
[1745288188567,10.46911697,1582.3,1582.2,0.04349339]
[1745288188772,9.64221697,1582.3,1582.2,0.04349339]
[1745288190579,3.32230293,1582.3,1582.2,0.04349339]
[1745288190785,9.64221697,1582.3,1582.2,0.04349339]
[1745288190981,3.32230293,1582.3,1582.2,0.04349339]
[1745288191799,9.64221697,1582.3,1582.2,0.04349339]
[1745288192882,3.32230293,1582.3,1582.2,0.04349339]
[1745288193085,9.64221697,1582.3,1582.2,0.04349339]
[1745288194806,3.32230293,1582.3,1582.2,0.04349339]
[1745288195113,9.64221697,1582.3,1582.2,0.04349339]
[1745288196728,3.32230293,1582.3,1582.2,0.04349339]
[1745288197219,3.32230293,1582.3,1582.2,7.44590042]
[1745288197444,3.32230293,1582.3,1582.2,9.13253321]
[1745288198012,3.32230293,1582.3,1582.2,21.41384669]
[1745288198329,13.45924916,1583.3,1582.8,3.0]
[1745288198489,6.08,1582.9,1582.8,3.0]
[1745288198703,6.08,1583.1,1582.9,3.61420703]
[1745288198904,6.08,1583.1,1583.0,0.7893]
[1745288199809,6.08,1583.1,1583.0,1.69642913]
[1745288200042,6.08,1583.1,1583.0,11.01354852]
[1745288200341,6.08,1583.1,1583.0,16.97354852]
[1745288200640,6.08,1583.6,1583.2,7.10534087]
[1745288200803,6.08,1583.6,1583.3,3.61420703]
[1745288201000,12.39492123,1583.6,1583.3,3.61420703]
[1745288201512,12.39492123,1583.6,1583.2,3.7893]
[1745288201696,6.08,1583.6,1583.2,8.41408054]
[1745288202538,6.08,1583.6,1583.2,3.7893]
[1745288202834,6.31557737,1583.4,1583.2,3.7893]
[1745288203039,12.63090933,1583.5,1583.2,3.7893]
[1745288203196,6.31540648,1583.5,1583.2,3.7893]
[1745288203700,6.08,1583.4,1583.2,0.7893]
[1745288203905,6.08,1583.4,1583.2,1.5296507]
[1745288205541,6.08,1583.4,1583.1,6.61420703]
[1745288205542,12.6323663,1583.3,1583.1,3.0]
[1745288205836,0.33249865,1583.2,1583.1,3.0]
[1745288206050,6.41249865,1583.2,1583.0,4.25607843]
[1745288206548,6.41249865,1583.2,1583.0,1.25607843]
[1745288207252,6.41249865,1583.2,1583.0,0.46677843]
[1745288207409,12.72883881,1583.2,1582.9,4.63472119]
[1745288207610,12.72883881,1583.2,1583.0,3.0]
[1745288207915,6.31711939,1583.0,1582.9,1.02051416]
[1745288208257,0.8318,1583.0,1582.7,5.959]
[1745288208412,6.08,1582.9,1582.7,5.959]
[1745288208604,6.08,1582.9,1582.7,3.0]
[1745288208808,0.33249865,1582.8,1582.7,3.0]
[1745288209009,6.08,1582.9,1582.7,3.0]
[1745288209212,0.33249865,1582.8,1582.7,3.0]
[1745288209450,12.39751928,1582.9,1582.7,3.0]
[1745288209649,0.33249865,1582.8,1582.7,3.0]
[1745288209812,6.08,1582.9,1582.7,3.0]
[1745288210006,0.33249865,1582.8,1582.7,4.33972708]
[1745288210244,6.08,1582.9,1582.7,7.95393411]
[1745288210447,0.33249865,1582.8,1582.7,7.95393411]
[1745288210750,6.08,1582.9,1582.7,7.95393411]
[1745288211050,0.33249865,1582.8,1582.7,6.61420703]
[1745288211223,6.08,1582.9,1582.7,6.61420703]
[1745288211549,0.33249865,1582.8,1582.7,6.61420703]
[1745288211751,0.33249865,1582.8,1582.7,3.61420703]
[1745288211933,6.08,1582.9,1582.8,3.0]
[1745288212140,6.08,1582.9,1582.7,4.40350703]
[1745288212341,12.39754014,1582.9,1582.7,4.40350703]
[1745288212526,12.39754014,1582.9,1582.8,3.0]
[1745288213721,6.08,1582.9,1582.8,3.0]
[1745288213925,12.39751847,1582.9,1582.8,3.0]
[1745288214128,13.20501847,1582.9,1582.8,3.0]
[1745288214323,6.3183168,1582.7,1582.6,4.89330858]
[1745288214573,6.31808731,1582.8,1582.6,3.46440155]
[1745288214868,6.31797408,1582.8,1582.6,3.46440155]
[1745288215022,12.39774391,1582.9,1582.7,3.61420703]
[1745288215224,6.08,1582.9,1582.7,4.42890703]
[1745288215760,12.39766722,1582.9,1582.7,4.42890703]
[1745288216260,12.39767456,1582.9,1582.7,4.42890703]
[1745288216860,6.08,1582.9,1582.7,4.42890703]
[1745288217358,6.08,1582.9,1582.7,5.21823789]
[1745288217658,6.08,1582.9,1582.8,3.0]
[1745288219061,12.39724073,1583.0,1582.8,3.0]
[1745288219652,6.08,1583.0,1582.8,3.0]
[1745288221041,12.39737437,1583.0,1582.8,3.0]